fUSD/lending_fUSD_20251115
["ID","MTS","AMOUNT","RATE_DAILY","PERIOD"]
[394045656,1763224231915,-26958.97262789,0.0001631,2]
[394045657,1763224231927,-848.57882165,0.0001631,2]
[394045658,1763224231939,-372.51000098,0.0001631,2]
[394045659,1763224231959,-1044.79356923,0.0001631,2]
[394045660,1763224236566,-2500.0,0.0001631,2]
[394045661,1763224236579,-663.0,0.0001631,2]
[394045706,1763224237487,-569.26722893,0.0001631,2]
[394045711,1763224237550,-1437.76353558,0.0001631,2]
[394045712,1763224237562,-2724.7365,0.0001631,2]
[394045713,1763224237573,-1122.70891671,0.0001631,2]
[394045714,1763224237585,-901.0,0.0001631,2]
[394045715,1763224237596,-11507.32672946,0.0001631,2]
[394045716,1763224237614,-12046.95275724,0.0001631,2]
[394045717,1763224237625,-259.36743815,0.0001631,2]
[394045718,1763224237637,-1814.66994,0.0001631,2]
[394045719,1763224237682,-40740.16156487,0.0001631,2]
[394045720,1763224237693,-1035.3,0.0001631,2]
[394045726,1763224239647,-518.75,0.0001631,2]
[394045743,1763224240264,-2877.10776756,0.0001631,2]
[394045744,1763224240276,-16410.0013195,0.0001631,2]
[394045745,1763224240288,-28455.7014983,0.0001631,2]
[394045746,1763224240299,-27378.35216328,0.0001631,2]
[394045749,1763224242951,-1004.45061899,0.0001631,2]
[394045755,1763224245942,-23901.89860635,0.0001631,2]
[394045756,1763224245953,-1200.0,0.00016318,2]
[394045757,1763224245962,-25704.0517,0.0001632,2]
[394045758,1763224245974,-3010.7455,0.0001632,2]
[394045759,1763224245984,-1000.0,0.0001632,2]
[394045760,1763224245994,-1000.0,0.0001632,2]
[394045761,1763224246003,-2500.0,0.0001632,2]
[394045762,1763224246012,-6157.13935666,0.00016338,2]
[394045763,1763224246022,-500.0,0.00016373,2]
[394045764,1763224246034,-500.0,0.00016373,2]
[394045765,1763224246043,-500.0,0.00016373,2]
[394045766,1763224246055,-369.54119436,0.00016373,2]
[394045767,1763224246064,-151.0,0.0001641,2]
[394045768,1763224246074,-151.0,0.0001641,2]
[394045769,1763224246083,-151.0,0.0001641,2]
[394045770,1763224246092,-151.0,0.0001641,2]
[394045771,1763224246102,-151.0,0.0001641,2]
[394045772,1763224246112,-151.0,0.0001641,2]
[394045773,1763224246122,-151.0,0.0001641,2]
[394045774,1763224246131,-150.0,0.00016419,2]
[394045775,1763224246141,-480.57356805,0.00016438,2]
[394045776,1763224246150,-500.0,0.00016473,2]
[394045777,1763224246159,-500.0,0.00016473,2]
[394045778,1763224246169,-150.0,0.00016623,2]
[394045779,1763224246178,-166.7,0.00016625,2]
[394045780,1763224246188,-166.66,0.00016672,2]
[394045781,1763224246197,-150.0,0.00016684,2]
[394045782,1763224246207,-1000.0,0.00016921,2]
[394045783,1763224246217,-500.0,0.00016921,2]
[394045784,1763224246227,-300.0,0.00016921,2]
[394045785,1763224246236,-72874.99,0.00016922,2]
[394045786,1763224246245,-9999.99,0.00016922,2]
[394045787,1763224246255,-150.99,0.00016922,2]
[394045788,1763224246264,-9999.99,0.00016922,2]
[394045790,1763224246274,-307.5,0.00016922,2]
[394045791,1763224246283,-27135.2,0.00016922,2]
[394045792,1763224246293,-9999.99,0.00016922,2]
[394045793,1763224246302,-1517.41,0.00016922,2]
[394045794,1763224246312,-9999.99,0.00016922,2]
[394045795,1763224246322,-999.99,0.00016922,2]
[394045796,1763224246332,-9999.99,0.00016922,2]
[394045798,1763224246343,-7666.43,0.00016922,2]
[394045800,1763224246354,-18615.47,0.00016922,2]
[394045801,1763224246364,-150.99,0.00016922,2]
[394045802,1763224246375,-499.99,0.00016922,2]
[394045803,1763224246384,-500.0,0.00016973,2]
[394045804,1763224246394,-500.0,0.00016973,2]
[394045805,1763224246403,-500.0,0.00016973,2]
[394045806,1763224246412,-500.0,0.00016973,2]
[394045807,1763224246421,-236.73335801,0.00016973,2]
[394045808,1763224246433,-500.0,0.00016973,2]
[394045809,1763224246443,-6157.13935659,0.00016997,2]
[394045810,1763224246451,-179140.15665428,0.00017,2]
[394045811,1763224246461,-151.0,0.00017,2]
[394045812,1763224246471,-151.0,0.00017,2]
[394045813,1763224246480,-156.166568,0.00017,2]
[394045814,1763224246491,-166.66,0.00017016,2]
[394045815,1763224246500,-327.46178706,0.00017021,2]
[394045816,1763224246509,-168.0,0.00017089,2]
[394045817,1763224246518,-150.0,0.00017131,2]
[394045818,1763224246527,-150.0,0.00017132,2]
[394045819,1763224246537,-300.0,0.00017134,2]
[394045820,1763224246548,-28138.2426343,0.00017135,2]
[394045821,1763224246557,-1541.4458143,0.00017135,2]
[394045822,1763224246567,-3932.2777227,0.00017135,2]
[394045823,1763224246577,-166.66,0.0001736,2]
[394045824,1763224246587,-1852.42,0.00017411,2]
[394045825,1763224246601,-935.0,0.00017418,2]
[394045826,1763224246610,-250.0,0.00017434,2]
[394045827,1763224246621,-800.13979988,0.00017468,2]
[394045828,1763224246630,-1028.43500418,0.00017521,2]
[394045829,1763224246640,-1000.0,0.00017521,2]
[394045830,1763224246649,-810.92938163,0.00017521,2]
[394045831,1763224246658,-1000.0,0.00017521,2]
[394045832,1763224246667,-1018.07329088,0.00017521,2]
[394045833,1763224246677,-250.0,0.00017544,2]
[394045834,1763224246686,-600.0,0.0001763,2]
[394045835,1763224246695,-222.2113773,0.00017633,2]
[394045836,1763224246704,-6157.13935659,0.00017656,2]
[394045837,1763224246715,-195.0,0.000177,2]
[394045838,1763224246724,-166.66,0.00017704,2]
[394045839,1763224246733,-1680.0,0.0001774,2]
[394045840,1763224246742,-500.0,0.00017773,2]
[394045841,1763224246752,-150.13919962,0.00017773,2]
[394045842,1763224246761,-420.0,0.00017824,2]
[394045843,1763224246771,-420.0,0.00017824,2]
[394045844,1763224246780,-1200.0,0.00017835,2]
[394045845,1763224246789,-464.14825284,0.000179,2]
[394045846,1763224246798,-188.21129635,0.000179,2]
[394045847,1763224246807,-181.32753641,0.000179,3]
[394045848,1763224246816,-929.0,0.00017945,2]
[394045849,1763224246827,-500.0,0.00017973,2]
[394045850,1763224246836,-14595.9842524,0.00017977,2]
[394045851,1763224246845,-151.0,0.00017977,2]
[394045852,1763224246854,-151.0,0.00017977,2]
[394045853,1763224246863,-151.0,0.00017977,2]
[394045854,1763224246872,-153.892861,0.00017977,2]
[394045855,1763224246881,-199.90677,0.00017977,2]
[394045856,1763224246890,-151.0,0.00017977,2]
[394045857,1763224246900,-199.90677,0.00017977,2]
[394045858,1763224246910,-199.90677,0.00017977,2]
[394045859,1763224246919,-199.90677,0.00017977,2]
[394045860,1763224246929,-208.58969533,0.00017987,2]
[394045861,1763224246938,-226469.32980288,0.00018,2]
[394045862,1763224246947,-1180.58733504,0.00018,2]
[394045863,1763224246957,-186388.39612743,0.00018,2]
[394045864,1763224247102,-6691.58867065,0.00018,2]
[394045865,1763224435069,500.0,0.0003,120]
[394045867,1763224501146,800.0,0.0003,120]
[394045896,1763224681464,700.0,0.0003,120]
[394046013,1763224947074,600.0,0.0003,120]
[394046014,1763225012412,1331.0,0.0003,120]
[394046015,1763225032176,700.0,0.0003,120]
[394046027,1763225252728,163.86,0.00012502,2]
[394046028,1763225303022,150.0,0.00015599,2]
[394046029,1763225343579,207.24,0.00015599,2]
[394046031,1763225400796,217.63,0.00015598,2]
[394046052,1763225431737,-1000.0,0.00015734,2]
[394046054,1763225431746,-737.22548478,0.00015847,2]
[394046056,1763225431758,-271.037225,0.00015847,2]
[394046059,1763225431773,-484.112775,0.00015847,2]
[394046086,1763225432041,-647.35451522,0.00015847,2]
[394046088,1763225432051,-434.503,0.00015886,2]
[394046090,1763225432060,-83.91331844,0.0001594,2]
[394046092,1763225432071,-111.08668156,0.0001594,2]
[394046094,1763225432080,-265.27331844,0.000161,2]
[394046117,1763225437646,-2054.1647354,0.000161,2]
[394046118,1763225437656,-300.0,0.00016109,2]
[394046119,1763225437667,-300.0,0.00016109,2]
[394046120,1763225437676,-1200.0,0.00016109,2]
[394046121,1763225437686,-1122.06803567,0.0001611,2]
[394046122,1763225437699,-1377.93196433,0.0001611,2]
[394046123,1763225437709,-1000.0,0.0001611,2]
[394046124,1763225437718,-1214.39550096,0.0001612,2]
[394046125,1763225437728,-820.72916712,0.0001612,2]
[394046126,1763225437811,-2417.40490093,0.0001612,2]
[394046127,1763225437820,-155.35389455,0.0001612,2]
[394046128,1763225437830,-224.27038256,0.0001612,2]
[394046129,1763225437841,-8393.32923521,0.0001612,2]
[394046134,1763225439907,-2294.34300146,0.0001612,2]
[394046135,1763225439919,-550.0,0.00016208,2]
[394046136,1763225439928,-1000.0,0.00016209,2]
[394046137,1763225439937,-1000.0,0.00016209,2]
[394046138,1763225439947,-500.0,0.00016209,2]
[394046139,1763225439959,-500.0,0.0001621,2]
[394046140,1763225439968,-202.44003714,0.00016219,2]
[394046141,1763225439977,-167.47287897,0.00016219,2]
[394046142,1763225439987,-500.0,0.00016219,2]
[394046143,1763225439996,-228.75419922,0.00016219,2]
[394046144,1763225440004,-439.1869535,0.00016219,2]
[394046145,1763225440014,-500.0,0.00016219,2]
[394046146,1763225440023,-500.0,0.00016219,2]
[394046147,1763225440033,-500.0,0.00016219,2]
[394046148,1763225440043,-500.0,0.00016219,2]
[394046149,1763225440052,-500.0,0.00016219,2]
[394046150,1763225440062,-500.0,0.00016219,2]
[394046151,1763225440071,-33305.0021,0.0001622,2]
[394046152,1763225440080,-1000.0,0.0001622,2]
[394046153,1763225440090,-500.0,0.00016273,2]
[394046154,1763225440099,-500.0,0.00016273,2]
[394046155,1763225440107,-564.4637752,0.00016273,2]
[394046156,1763225440116,-160.72878876,0.00016273,2]
[394046157,1763225440125,-500.0,0.00016273,2]
[394046158,1763225440134,-500.0,0.00016273,2]
[394046159,1763225440143,-500.0,0.00016273,2]
[394046160,1763225440151,-500.0,0.00016273,2]
[394046161,1763225440160,-555.71241141,0.00016273,2]
[394046162,1763225440170,-500.0,0.00016273,2]
[394046163,1763225440179,-500.0,0.00016273,2]
[394046164,1763225440188,-500.0,0.00016273,2]
[394046165,1763225440197,-5141.18,0.00016288,2]
[394046166,1763225440206,-500.0,0.00016309,2]
[394046167,1763225440215,-200.0,0.0001641,2]
[394046168,1763225440225,-541.44,0.00016438,2]
[394046169,1763225440235,-772.61052027,0.00016438,2]
[394046170,1763225440247,-217.63,0.00016465,2]
[394046171,1763225440256,-500.0,0.00016475,2]
[394046172,1763225440267,-4452.52956901,0.00016764,2]
[394046173,1763225440276,-10687.67223658,0.00016803,2]
[394046174,1763225440289,-628.78917675,0.00016821,2]
[394046175,1763225440301,-500.0,0.00016821,2]
[394046176,1763225440312,-1000.0,0.00016821,2]
[394046177,1763225440321,-1000.0,0.00016821,2]
[394046178,1763225440331,-151.0,0.00016832,2]
[394046179,1763225440341,-2000.0,0.00016913,2]
[394046180,1763225440350,-150.99,0.00016922,2]
[394046181,1763225440359,-4826.04,0.00016922,2]
[394046182,1763225440368,-3093.34,0.00016922,2]
[394046183,1763225440377,-9999.99,0.00016922,2]
[394046184,1763225440386,-250.0,0.00017,2]
[394046185,1763225440395,-200.66421668,0.00017074,2]
[394046186,1763225440404,-7521.29,0.000171,2]
[394046187,1763225440413,-216.98,0.0001712,2]
[394046188,1763225440423,-300.0,0.0001712,2]
[394046189,1763225440432,-300.0,0.00017153,2]
[394046190,1763225440442,-250.0,0.00017308,2]
[394046191,1763225440451,-250.0,0.00017308,2]
[394046192,1763225440460,-935.0,0.00017326,2]
[394046193,1763225440470,-217.63,0.00017331,2]
[394046194,1763225440479,-1500.0,0.00017368,2]
[394046195,1763225440487,-1259.58284128,0.00017368,2]
[394046196,1763225440497,-4452.52956901,0.00017407,2]
[394046197,1763225440506,-250.0,0.00017475,2]
[394046198,1763225440515,-195.0,0.00017475,2]
[394046199,1763225440524,-10687.67223658,0.00017486,2]
[394046200,1763225440533,-600.0,0.00017512,2]
[394046201,1763225440543,-420.0,0.0001761,2]
[394046202,1763225440552,-420.0,0.0001761,2]
[394046203,1763225440562,-222.2113773,0.00017617,2]
[394046204,1763225440571,-1680.0,0.00017699,2]
[394046205,1763225440580,-1000.0,0.00017701,2]
[394046206,1763225440589,-15283.73,0.00017728,2]
[394046207,1763225440598,-436.16712312,0.00017773,2]
[394046208,1763225440607,-157719.46513873,0.0001783,2]
[394046209,1763225440616,-500.0,0.00017873,2]
[394046210,1763225440626,-500.0,0.00017873,2]
[394046211,1763225440635,-500.0,0.00017873,2]
[394046212,1763225440644,-500.0,0.00017873,2]
[394046213,1763225440654,-420.55488075,0.00017873,2]
[394046214,1763225440667,-162.47250027,0.00017873,2]
[394046215,1763225440677,-500.91557619,0.00017873,2]
[394046216,1763225440686,-599.95401361,0.00017873,2]
[394046217,1763225440696,-500.0,0.00017873,2]
[394046218,1763225440706,-500.0,0.00017873,2]
[394046219,1763225440717,-500.0,0.00017873,2]
[394046220,1763225440726,-500.0,0.00017873,2]
[394046221,1763225440735,-321.9569771,0.000179,2]
[394046222,1763225440744,-842.67088932,0.000179,2]
[394046223,1763225440754,-739.0,0.000179,2]
[394046224,1763225440763,-3088.19,0.0001791,2]
[394046225,1763225440772,-500.0,0.00017916,2]
[394046226,1763225440782,-98530.6130185,0.00017922,2]
[394046227,1763225440791,-29746.7587475,0.00017922,2]
[394046228,1763225440800,-10296.5473424,0.00017922,2]
[394046229,1763225440809,-3129.4223068,0.00017922,2]
[394046230,1763225440819,-224.463566,0.00017922,2]
[394046231,1763225440828,-151.0,0.00017922,2]
[394046232,1763225440837,-151.0,0.00017922,2]
[394046233,1763225440846,-159.925416,0.00017922,2]
[394046234,1763225440855,-159.925416,0.00017922,2]
[394046235,1763225440866,-159.925416,0.00017922,2]
[394046236,1763225440877,-159.925416,0.00017922,2]
[394046237,1763225440887,-1057.4856876,0.00017922,2]
[394046238,1763225440896,-151.0,0.00017922,2]
[394046239,1763225440905,-154.14105,0.00017922,2]
[394046240,1763225440914,-151.0,0.00017922,2]
[394046241,1763225440925,-151.0,0.00017922,2]
[394046242,1763225440934,-151.0,0.00017922,2]
[394046243,1763225440943,-151.0,0.0001793,2]
[394046244,1763225440952,-500.0,0.00017973,2]
[394046245,1763225440964,-501.41488299,0.00017973,2]
[394046246,1763225440973,-500.99327438,0.00017973,2]
[394046247,1763225440983,-577.9343962,0.00017973,2]
[394046248,1763225440992,-500.0,0.00017973,2]
[394046249,1763225441001,-518.75704326,0.00017973,2]
[394046250,1763225441011,-500.0,0.00017973,2]
[394046251,1763225441020,-500.0,0.00017973,2]
[394046252,1763225441029,-500.0,0.00017973,2]
[394046253,1763225441039,-500.0,0.00017973,2]
[394046254,1763225441048,-613.73,0.00017973,2]
[394046255,1763225441060,-416687.68612639,0.00018,2]
[394046256,1763225441073,-422.89223244,0.00018,2]
[394046257,1763225441085,-2945.74043215,0.00018,2]
[394046258,1763225441097,-2705.55170041,0.00018,2]
[394046263,1763225445735,-1711.72064921,0.00018,2]
[394046264,1763225445789,-323.08,0.00018,2]
[394046265,1763225445843,-450.0750025,0.00018,2]
[394046269,1763225531351,210.53,0.00026019,120]
[394046273,1763225693379,499.85,0.00041338,30]
[394046274,1763225715383,150.0,0.00017132,120]
[394046275,1763225951528,500.0,0.00041333,120]
[394046276,1763225951775,500.0,0.00041333,120]
[394046277,1763225952008,500.0,0.00041333,120]
[394046278,1763225952249,500.0,0.00041333,120]
[394046279,1763225952512,500.0,0.00041333,120]
[394046280,1763225952751,500.0,0.00041333,120]
[394046281,1763225952990,500.0,0.00041333,120]
[394046282,1763225953215,500.0,0.00041333,120]
[394046283,1763225953804,500.0,0.00041333,120]
[394046284,1763225954045,500.0,0.00041333,120]
[394046285,1763225954289,500.0,0.00041333,120]
[394046286,1763225954575,500.0,0.00041333,120]
[394046287,1763225954814,500.0,0.00041333,120]
[394046288,1763225955441,500.0,0.00041333,120]
[394046289,1763225955696,500.0,0.00041333,120]
[394046290,1763225955960,500.0,0.00041333,120]
[394046291,1763225956306,500.0,0.00041333,120]
[394046292,1763225956562,500.0,0.00041333,120]
[394046293,1763225956821,500.0,0.00041333,120]
[394046294,1763225957312,520.85957601,0.00041333,120]
[394046295,1763225980031,300.0,0.000159,5]
[394046296,1763226153566,151.37898281,0.00016327,7]
[394046297,1763226172711,999.0,0.00015815,3]
[394046298,1763226221598,670.34,0.00013699,2]
[394046300,1763226283406,605.51,7.914e-05,2]
[394046301,1763226283598,605.51,8.33e-05,2]
[394046302,1763226284073,605.51,8.747e-05,2]
[394046303,1763226284376,605.51,9.163e-05,2]
[394046304,1763226284586,605.51,9.58e-05,2]
[394046305,1763226284818,605.51,9.996e-05,2]
[394046306,1763226285017,605.51,0.00010413,2]
[394046307,1763226285227,605.51,0.00010829,2]
[394046308,1763226285456,605.51,0.00011246,2]
[394046309,1763226285657,605.51,0.00011662,2]
[394046310,1763226285872,605.51,0.00012079,2]
[394046311,1763226286090,605.51,0.00012496,2]
[394046312,1763226286397,605.51,0.00012912,2]
[394046313,1763226286607,605.51,0.00013329,2]
[394046314,1763226286809,605.51,0.00013745,2]
[394046315,1763226287024,247.02,0.00014162,2]
[394046316,1763226287052,358.49,0.00014162,2]
[394046317,1763226287227,605.51,0.00014578,2]
[394046318,1763226287618,605.51,0.00014995,2]
[394046319,1763226287833,605.51,0.00015411,2]
[394046323,1763226376742,-454.64,0.0001569,2]
[394046324,1763226390951,500.0,0.00041334,120]
[394046325,1763226391210,500.0,0.00041334,120]
[394046326,1763226391562,500.0,0.00041334,120]
[394046327,1763226391882,481.31,0.00041334,120]
[394046332,1763226460099,300.0,0.000159,5]
[394046356,1763226631942,-166.88,0.00015788,2]
[394046358,1763226631952,-517.33,0.00015788,2]
[394046359,1763226631961,-115.70360305,0.00015828,2]
[394046361,1763226631973,-489.80639695,0.00015828,2]
[394046362,1763226631984,-1276.17863191,0.000159,2]
[394046363,1763226631993,-150.0,0.00015936,2]
[394046364,1763226632002,-166.66,0.00016005,2]
[394046365,1763226632011,-500.0,0.00016005,2]
[394046366,1763226632021,-478.1451241,0.00016005,2]
[394046367,1763226632030,-300.0,0.00016009,2]
[394046368,1763226632049,-1200.0,0.00016009,2]
[394046369,1763226632059,-300.0,0.00016009,2]
[394046370,1763226632068,-2477.8189,0.0001601,2]
[394046371,1763226632077,-1000.0,0.0001601,2]
[394046372,1763226632086,-10000.01,0.0001601,2]
[394046373,1763226632096,-274.0,0.00016015,2]
[394046374,1763226632105,-7481.37056566,0.00016016,2]
[394046375,1763226632114,-196.23658474,0.00016016,2]
[394046376,1763226632124,-155.35389453,0.00016016,2]
[394046377,1763226632133,-661.76,0.000161,2]
[394046378,1763226632142,-151.0,0.000161,2]
[394046379,1763226632152,-151.0,0.000161,2]
[394046380,1763226632161,-151.0,0.000161,2]
[394046381,1763226632172,-151.0,0.000161,2]
[394046382,1763226632182,-151.0,0.000161,2]
[394046383,1763226632191,-151.0,0.000161,2]
[394046384,1763226632201,-151.0,0.000161,2]
[394046385,1763226632210,-151.0,0.000161,2]
[394046386,1763226632219,-151.0,0.000161,2]
[394046387,1763226632230,-151.0,0.000161,2]
[394046388,1763226632239,-151.0,0.000161,2]
[394046389,1763226632253,-151.0,0.000161,2]
[394046390,1763226632262,-151.0,0.000161,2]
[394046391,1763226632272,-500.0,0.00016109,2]
[394046392,1763226632283,-553.04656163,0.00016109,2]
[394046393,1763226632294,-572.82387158,0.00016109,2]
[394046394,1763226632303,-437.68743928,0.00016109,2]
[394046395,1763226632313,-23884.06,0.00016116,2]
[394046396,1763226632323,-1852.42,0.00016176,2]
[394046397,1763226632333,-166.66,0.00016342,2]
[394046398,1763226632342,-661.76,0.00016374,2]
[394046399,1763226632351,-500.0,0.00016438,2]
[394046400,1763226632361,-447.34378738,0.00016438,2]
[394046401,1763226632370,-500.0,0.00016438,2]
[394046402,1763226632379,-661.76,0.00016648,2]
[394046403,1763226632388,-31281.13599475,0.00016654,2]
[394046404,1763226632404,-474.202935,0.00016654,2]
[394046405,1763226632415,-2237.07352637,0.00016654,2]
[394046406,1763226632427,-17161.77604965,0.00016654,2]
[394046407,1763226632437,-3283.16954773,0.00016654,2]
[394046408,1763226632448,-9127.84833765,0.00016654,2]
[394046409,1763226632459,-842.99999995,0.00016654,2]
[394046410,1763226632470,-3673.29706504,0.00016654,2]
[394046411,1763226632481,-533.7134,0.00016654,2]
[394046412,1763226632492,-1128.70859618,0.00016654,2]
[394046416,1763226637852,-4359.14992954,0.00016654,2]
[394046417,1763226637867,-538.35372833,0.00016654,2]
[394046418,1763226637879,-6248.1982042,0.00016654,2]
[394046419,1763226637890,-1029.50000005,0.00016654,2]
[394046420,1763226637906,-22413.47170572,0.00016654,2]
[394046421,1763226637918,-2055.4011436,0.00016654,2]
[394046422,1763226637930,-33162.29044166,0.00016654,2]
[394046423,1763226638014,-4142.76651419,0.00016654,2]
[394046424,1763226638023,-500.78079842,0.00016673,2]
[394046425,1763226638033,-500.0,0.00016673,2]
[394046426,1763226638042,-500.0,0.00016673,2]
[394046427,1763226638051,-500.0,0.00016673,2]
[394046428,1763226638061,-500.0,0.00016673,2]
[394046429,1763226638071,-166.66,0.00016678,2]
[394046430,1763226638080,-661.76,0.00016922,2]
[394046431,1763226638090,-7481.3705656,0.00016986,2]
[394046432,1763226638100,-1022.56,0.00016986,2]
[394046433,1763226638111,-250.0,0.00017,2]
[394046434,1763226638124,-166.66,0.00017015,2]
[394046435,1763226638134,-150.0,0.0001704,2]
[394046436,1763226638144,-150.0,0.00017132,2]
[394046437,1763226638153,-661.76,0.00017196,2]
[394046438,1763226638163,-1000.0,0.00017221,2]
[394046439,1763226638172,-1043.95782135,0.00017221,2]
[394046440,1763226638182,-894.07329233,0.00017221,2]
[394046441,1763226638191,-1000.0,0.00017221,2]
[394046442,1763226638200,-531.71,0.00017282,2]
[394046443,1763226638211,-2000.0,0.000173,2]
[394046444,1763226638220,-1154.23,0.00017305,2]
[394046446,1763226638230,-210.53,0.00017346,2]
[394046447,1763226638241,-166.66,0.00017352,2]
[394046448,1763226638255,-677.63739333,0.00017443,2]
[394046449,1763226638264,-661.77595766,0.0001747,2]
[394046450,1763226638274,-420.0,0.00017503,2]
[394046451,1763226638283,-26.87865712,0.00017503,2]
[394046454,1763226639850,-393.12134288,0.00017503,2]
[394046455,1763226639860,-1680.0,0.00017591,2]
[394046456,1763226639870,-600.0,0.000176,6]
[394046457,1763226639883,-863.0,0.00017631,2]
[394046458,1763226639892,-1566.82374513,0.00017674,2]
[394046459,1763226640061,-300.35996914,0.00017674,2]
[394046460,1763226640260,-288.69374861,0.00017674,2]
[394046461,1763226640272,-252.636388,0.00017674,2]
[394046462,1763226640283,-2575.43858789,0.00017674,2]
[394046463,1763226640296,-331.33386548,0.00017674,2]
[394046464,1763226640304,-166.66,0.00017689,2]
[394046465,1763226640314,-900.0,0.000177,6]
[394046466,1763226640324,-222.2113773,0.00017728,2]
[394046467,1763226640333,-1515.67267639,0.00017768,2]
[394046468,1763226640342,-1414.79214275,0.00017768,2]
[394046469,1763226640351,-1300.0,0.000178,6]
[394046470,1763226640360,-1779.17964,0.0001782,2]
[394046471,1763226640369,-2289.25539314,0.00017822,2]
[394046472,1763226640378,-168.0,0.00017827,2]
[394046473,1763226640387,-168.0,0.00017848,2]
[394046474,1763226640396,-373.85753412,0.00017879,2]
[394046475,1763226640406,-1600.0,0.000179,6]
[394046476,1763226640415,-214.63798474,0.000179,2]
[394046477,1763226640427,-561.78059288,0.000179,2]
[394046478,1763226640438,-181.32753641,0.000179,3]
[394046479,1763226640448,-206.20216219,0.00017922,2]
[394046480,1763226640457,-168.0,0.00017924,2]
[394046481,1763226640466,-1779.17965,0.0001793,2]
[394046482,1763226640475,-1079.71808181,0.00017932,2]
[394046483,1763226640486,-2987.2,0.00017932,2]
[394046484,1763226640498,-11151.0680825,0.00017932,2]
[394046485,1763226640507,-863.0,0.00017954,2]
[394046486,1763226640516,-591.0,0.00017956,2]
[394046487,1763226640528,-7481.3705656,0.00017956,2]
[394046488,1763226640537,-15256.75014802,0.00017979,2]
[394046489,1763226640548,-962.4434868,0.00017979,2]
[394046538,1763227298252,-413.864,0.0001569,2]
[394046543,1763227552679,9172.282,0.000156,2]
[394046544,1763227552702,10000.01,0.000156,2]
[394046545,1763227552724,10000.01,0.000156,2]
[394046546,1763227552748,10000.01,0.000156,2]
[394046547,1763227552770,10000.01,0.000156,2]
[394046548,1763227552790,10000.01,0.000156,2]
[394046549,1763227552813,10000.01,0.000156,2]
[394046550,1763227552834,10000.01,0.000156,2]
[394046551,1763227552855,9517.63606672,0.000156,2]
[394046666,1763227832142,-300.0,0.00015809,2]
[394046667,1763227832152,-441.69750709,0.00015809,2]
[394046668,1763227832163,-758.30249291,0.00015809,2]
[394046669,1763227832172,-300.0,0.00015809,2]
[394046670,1763227832182,-300.0,0.00015809,2]
[394046671,1763227832191,-2747.23494001,0.0001581,2]
[394046672,1763227832202,-574.9815518,0.0001581,2]
[394046673,1763227832212,-347.38846525,0.0001581,2]
[394046674,1763227832251,-6725.73943235,0.0001581,2]
[394046675,1763227832262,-150614.75891541,0.0001581,2]
[394046676,1763227832272,-15770.42283177,0.0001581,2]
[394046677,1763227832360,-630.31,0.0001581,2]
[394046684,1763227838021,-230.31668166,0.00015809,2]
[394046685,1763227838031,-500.0,0.00015809,2]
[394046686,1763227838041,-500.0,0.00015809,2]
[394046687,1763227838051,-371.18321834,0.00015809,2]
[394046688,1763227838066,-128.81678166,0.00015809,2]
[394046689,1763227838076,-500.0,0.00015809,2]
[394046690,1763227838086,-500.0,0.00015809,2]
[394046691,1763227838095,-500.0,0.00015809,2]
[394046692,1763227838104,-500.0,0.00015809,2]